fUSD/lending_fUSD_20250618
["ID","MTS","AMOUNT","RATE_DAILY","PERIOD"]
[366441679,1750257053508,-562.77,0.00016931,2]
[366441680,1750257053518,-465.41266344,0.00016931,2]
[366441681,1750257053528,-490.0,0.00016931,2]
[366441682,1750257053538,-1069.11,0.00016931,2]
[366441683,1750257053547,-513.47,0.00016931,2]
[366441684,1750257053557,-490.0,0.00016931,2]
[366441685,1750257053567,-567.01,0.00016931,2]
[366441686,1750257053576,-1198.12,0.00016931,2]
[366441687,1750257053586,-490.0,0.00016931,2]
[366441688,1750257053596,-632.91,0.00016931,2]
[366441689,1750257053605,-1129.76,0.00016931,2]
[366441690,1750257053615,-1414.45,0.00016931,2]
[366441691,1750257053624,-490.0,0.00016931,2]
[366441692,1750257053634,-490.0,0.00016931,2]
[366441693,1750257053644,-490.0,0.00016931,2]
[366441694,1750257053654,-490.0,0.00016931,2]
[366441695,1750257053663,-500.0,0.00016939,2]
[366441696,1750257053673,-500.0,0.00016939,2]
[366441697,1750257053682,-500.0,0.00016939,2]
[366441698,1750257053692,-500.0,0.00016939,2]
[366441699,1750257053702,-217.90262552,0.00016939,2]
[366441700,1750257053711,-215.0738,0.00016947,2]
[366441701,1750257053721,-151.0,0.00016948,2]
[366441702,1750257053731,-161.56208367,0.00016968,2]
[366441703,1750257053741,-332.37694745,0.00016973,2]
[366441704,1750257053751,-500.0,0.00016973,2]
[366441705,1750257053761,-500.8318122,0.00016973,2]
[366441706,1750257053771,-151.02989897,0.00016973,2]
[366441707,1750257053780,-506.33715115,0.00016973,2]
[366441708,1750257053790,-501.51225792,0.00016973,2]
[366441709,1750257053800,-500.0,0.00016973,2]
[366441710,1750257053809,-617.06312682,0.00016973,2]
[366441711,1750257053819,-164.40141491,0.00016973,2]
[366441712,1750257053829,-160.11499773,0.00016973,2]
[366441713,1750257053840,-501.50722289,0.00016973,2]
[366441714,1750257053851,-2705.5633448,0.00016977,2]
[366441715,1750257053860,-3000.0,0.00016978,2]
[366441716,1750257053870,-26873.24885595,0.0001699,2]
[366441717,1750257053880,-151.0,0.00016997,2]
[366441718,1750257053890,-1315.98,0.00016999,2]
[366441719,1750257053899,-500.0,0.00016999,2]
[366441720,1750257053909,-300.0,0.00016999,2]
[366441721,1750257053919,-209.5,0.00017,2]
[366441722,1750257053929,-100602.82833921,0.00017,2]
[366441723,1750257053939,-530.55752978,0.00017,3]
[366441724,1750257053949,-300.0,0.00017,2]
[366441725,1750257053959,-500.43152047,0.00017,4]
[366441726,1750257053968,-13741.57,0.00017,5]
[366441727,1750257053978,-10000.0,0.00017,2]
[366441728,1750257053987,-85881.616286,0.00017,2]
[366441729,1750257053997,-361.51,0.00017004,2]
[366441730,1750257054008,-1000.0,0.00017021,2]
[366441731,1750257054017,-500.0,0.00017021,2]
[366441732,1750257054027,-858.36893487,0.00017044,2]
[366441733,1750257054037,-151.0,0.00017046,2]
[366441734,1750257054047,-368.4335177,0.0001705,2]
[366441735,1750257054057,-168.0,0.00017058,2]
[366441736,1750257054068,-2705.5633448,0.00017069,2]
[366441737,1750257054078,-513.0,0.00017071,2]
[366441738,1750257054088,-1315.98,0.00017094,2]
[366441739,1750257054098,-1315.98,0.00017094,2]
[366441740,1750257054108,-1315.98,0.00017094,2]
[366441741,1750257054118,-1315.98,0.00017094,2]
[366441742,1750257054129,-1315.98,0.00017094,2]
[366441743,1750257054138,-1315.98,0.00017094,2]
[366441744,1750257054148,-1316.11430361,0.00017094,2]
[366441745,1750257054159,-500.0,0.00017094,2]
[366441746,1750257054168,-500.0,0.00017094,2]
[366441747,1750257054178,-372.82958016,0.00017094,2]
[366441748,1750257054187,-361.15462794,0.00017094,2]
[366441749,1750257054197,-300.0,0.00017094,2]
[366441750,1750257054207,-216.0,0.00017095,2]
[366441751,1750257054216,-211.0,0.00017095,2]
[366441752,1750257054226,-12500.0,0.00017095,2]
[366441753,1750257054236,-4349.92868488,0.00017095,2]
[366441754,1750257054245,-490.0,0.00017095,2]
[366441755,1750257054257,-686.14,0.00017095,2]
[366441756,1750257054267,-551.49,0.00017095,2]
[366441757,1750257054277,-777.25,0.00017095,2]
[366441758,1750257054287,-490.0,0.00017095,2]
[366441759,1750257054298,-518.54,0.00017095,2]
[366441760,1750257054308,-560.09,0.00017095,2]
[366441761,1750257054319,-490.0,0.00017095,2]
[366441762,1750257054329,-285.76,0.00017095,2]
[366441763,1750257054339,-490.0,0.00017095,2]
[366441764,1750257054349,-490.0,0.00017095,2]
[366441765,1750257054359,-490.0,0.00017095,2]
[366441766,1750257054369,-490.0,0.00017095,2]
[366441767,1750257054379,-300.0,0.00017095,2]
[366441768,1750257054389,-490.0,0.00017095,2]
[366441769,1750257054398,-490.0,0.00017095,2]
[366441770,1750257054409,-490.0,0.00017095,2]
[366441771,1750257054422,-781.86,0.00017095,2]
[366441772,1750257054495,-492.72,0.00017095,2]
[366441773,1750257054506,-490.0,0.00017095,2]
[366441774,1750257054515,-519.56,0.00017095,2]
[366441775,1750257054524,-523.43,0.00017095,2]
[366441776,1750257054534,-490.0,0.00017095,2]
[366441777,1750257054544,-990.9,0.00017095,2]
[366441778,1750257054554,-490.0,0.00017095,2]
[366441779,1750257054564,-490.0,0.00017095,2]
[366441780,1750257054574,-490.0,0.00017095,2]
[366441781,1750257054584,-538.02,0.00017095,2]
[366441782,1750257054593,-763.15,0.00017095,2]
[366441783,1750257054603,-490.0,0.00017095,2]
[366441784,1750257054612,-1338.65,0.00017095,2]
[366441785,1750257054621,-613.29,0.00017095,2]
[366441786,1750257054631,-490.0,0.00017095,2]
[366441787,1750257054640,-743.18,0.00017095,2]
[366441788,1750257054650,-490.0,0.00017095,2]
[366441789,1750257054659,-490.0,0.00017095,2]
[366441790,1750257054669,-490.0,0.00017095,2]
[366441791,1750257054678,-490.0,0.00017095,2]
[366441792,1750257054688,-706.15,0.00017095,2]
[366441793,1750257054698,-490.0,0.00017095,2]
[366441794,1750257054707,-490.0,0.00017095,2]
[366441795,1750257054717,-551.76,0.00017095,2]
[366441796,1750257054727,-490.0,0.00017095,2]
[366441797,1750257054736,-490.0,0.00017095,2]
[366441798,1750257054745,-546.08,0.00017095,2]
[366441799,1750257054757,-490.0,0.00017095,2]
[366441800,1750257054766,-658.72,0.00017095,2]
[366441801,1750257054776,-490.0,0.00017095,2]
[366441802,1750257054786,-490.0,0.00017095,2]
[366441803,1750257054796,-490.0,0.00017095,2]
[366441804,1750257054806,-490.0,0.00017095,2]
[366441805,1750257054816,-533.74,0.00017095,2]
[366441806,1750257054826,-490.0,0.00017095,2]
[366441807,1750257054836,-490.0,0.00017095,2]
[366441808,1750257054846,-490.0,0.00017095,2]
[366441809,1750257054856,-490.0,0.00017095,2]
[366441810,1750257054866,-490.0,0.00017095,2]
[366441811,1750257054876,-490.0,0.00017095,2]
[366441812,1750257054886,-871.98,0.00017095,2]
[366441813,1750257054895,-490.0,0.00017095,2]
[366441814,1750257054905,-490.0,0.00017095,2]
[366441815,1750257054915,-490.0,0.00017095,2]
[366441816,1750257054924,-584.75,0.00017095,2]
[366441817,1750257054934,-589.43,0.00017095,2]
[366441818,1750257054943,-490.0,0.00017095,2]
[366441819,1750257054953,-908.44,0.00017095,2]
[366441820,1750257054962,-490.13,0.00017095,2]
[366441821,1750257054972,-490.0,0.00017095,2]
[366441822,1750257054982,-490.0,0.00017095,2]
[366441823,1750257054992,-490.0,0.00017095,2]
[366441824,1750257055002,-490.0,0.00017095,2]
[366441825,1750257055012,-490.0,0.00017095,2]
[366441826,1750257055022,-490.0,0.00017095,2]
[366441827,1750257055031,-497.00729827,0.00017095,2]
[366441828,1750257055041,-490.0,0.00017095,2]
[366441829,1750257055050,-670.85,0.00017095,2]
[366441830,1750257055060,-490.0,0.00017095,2]
[366441831,1750257055070,-594.25,0.00017095,2]
[366441832,1750257055079,-490.0,0.00017095,2]
[366441833,1750257055089,-490.0,0.00017095,2]
[366441834,1750257055099,-674.18,0.00017095,2]
[366441835,1750257055108,-562.72,0.00017095,2]
[366441836,1750257055118,-581.59,0.00017095,2]
[366441837,1750257055128,-571.73,0.00017095,2]
[366441838,1750257055138,-490.0,0.00017095,2]
[366441839,1750257055148,-512.65,0.00017095,2]
[366441840,1750257055157,-578.22,0.00017095,2]
[366441841,1750257055167,-490.0,0.00017095,2]
[366441842,1750257055177,-502.22,0.00017095,2]
[366441843,1750257055186,-535.71,0.00017095,2]
[366441844,1750257055195,-490.0,0.00017095,2]
[366441845,1750257055205,-528.62,0.00017095,2]
[366441846,1750257055215,-490.0,0.00017095,2]
[366441847,1750257055224,-761.74,0.00017095,2]
[366441848,1750257055234,-490.0,0.00017095,2]
[366441849,1750257055243,-549.14,0.00017095,2]
[366441850,1750257055254,-1157.46,0.00017095,2]
[366441851,1750257055264,-711.34,0.00017095,2]
[366441852,1750257055273,-490.0,0.00017095,2]
[366441853,1750257055283,-490.0,0.00017095,2]
[366441854,1750257055292,-1138.45,0.00017095,2]
[366441855,1750257055301,-574.18,0.00017095,2]
[366441856,1750257055311,-490.0,0.00017095,2]
[366441857,1750257055320,-490.0,0.00017095,2]
[366441858,1750257055330,-697.93,0.00017095,2]
[366441859,1750257055340,-1306.71,0.00017095,2]
[366441860,1750257055349,-490.0,0.00017095,2]
[366441861,1750257055359,-513.85,0.00017095,2]
[366441862,1750257055369,-490.0,0.00017095,2]
[366441863,1750257055378,-1490.15,0.00017095,2]
[366441864,1750257055388,-1470.31,0.00017095,2]
[366441865,1750257055397,-650.64,0.00017095,2]
[366441866,1750257055407,-714.69,0.00017095,2]
[366441867,1750257055420,-1055.17,0.00017095,2]
[366441868,1750257055429,-490.0,0.00017095,2]
[366441869,1750257055439,-938.74,0.00017095,2]
[366441870,1750257055449,-752.12,0.00017095,2]
[366441871,1750257055459,-746.58,0.00017095,2]
[366441872,1750257055468,-615.79,0.00017095,2]
[366441873,1750257055477,-1184.09,0.00017095,2]
[366441874,1750257055489,-490.0,0.00017095,2]
[366441875,1750257055499,-490.0,0.00017095,2]
[366441876,1750257055508,-595.15,0.00017095,2]
[366441877,1750257055518,-546.89,0.00017095,2]
[366441878,1750257055528,-892.68,0.00017095,2]
[366441879,1750257055538,-662.92,0.00017095,2]
[366441880,1750257055548,-490.0,0.00017095,2]
[366441881,1750257055557,-784.12,0.00017095,2]
[366441882,1750257055567,-1398.48,0.00017095,2]
[366441883,1750257055576,-1387.74,0.00017095,2]
[366441884,1750257055586,-1002.15,0.00017095,2]
[366441885,1750257055595,-562.5,0.00017095,2]
[366441886,1750257055605,-490.0,0.00017095,2]
[366441887,1750257055614,-1114.11,0.00017095,2]
[366441888,1750257055623,-490.0,0.00017095,2]
[366441889,1750257055633,-1158.83,0.00017095,2]
[366441890,1750257055642,-490.0,0.00017095,2]
[366441891,1750257055651,-1123.05,0.00017095,2]
[366441892,1750257055661,-490.0,0.00017095,2]
[366441893,1750257055670,-585.81,0.00017095,2]
[366441894,1750257055679,-512.44,0.00017095,2]
[366441895,1750257055689,-529.92,0.00017095,2]
[366441896,1750257055698,-619.01,0.00017095,2]
[366441897,1750257055707,-490.0,0.00017095,2]
[366441898,1750257055716,-511.25,0.00017095,2]
[366441899,1750257055726,-490.0,0.00017095,2]
[366441900,1750257055735,-490.0,0.00017095,2]
[366441901,1750257055745,-690.3,0.00017095,2]
[366441902,1750257055755,-1117.61,0.00017095,2]
[366441903,1750257055764,-1128.49,0.00017095,2]
[366441904,1750257055773,-490.0,0.00017095,2]
[366441905,1750257055782,-490.0,0.00017095,2]
[366441906,1750257055791,-490.0,0.00017095,2]
[366441907,1750257055800,-1499.37,0.00017095,2]
[366441908,1750257055810,-705.99,0.00017095,2]
[366441909,1750257055819,-1251.05,0.00017095,2]
[366441910,1750257055829,-770.06,0.00017095,2]
[366441911,1750257055838,-490.0,0.00017095,2]
[366441912,1750257055848,-1149.1,0.00017095,2]
[366441913,1750257055858,-607.32,0.00017095,2]
[366441914,1750257055867,-697.95,0.00017095,2]
[366441915,1750257055877,-490.0,0.00017095,2]
[366441916,1750257055886,-951.45,0.00017095,2]
[366441917,1750257055896,-1246.97,0.00017095,2]
[366441918,1750257055905,-490.0,0.00017095,2]
[366441919,1750257055915,-490.0,0.00017095,2]
[366441920,1750257055924,-704.38,0.00017095,2]
[366441921,1750257055934,-718.12,0.00017095,2]
[366441922,1750257055944,-783.15,0.00017095,2]
[366441923,1750257055953,-897.47,0.00017095,2]
[366441924,1750257055962,-490.0,0.00017095,2]
[366441925,1750257055972,-490.0,0.00017095,2]
[366441926,1750257055981,-801.94,0.00017095,2]
[366441927,1750257055990,-655.08,0.00017095,2]
[366441928,1750257056003,-1547.99,0.00017095,2]
[366441929,1750257056012,-961.74,0.00017095,2]
[366441930,1750257056022,-492.13,0.00017095,2]
[366441931,1750257056032,-490.0,0.00017095,2]
[366441932,1750257056041,-1810.08,0.00017095,2]
[366441933,1750257056051,-609.2,0.00017095,2]
[366441934,1750257056061,-733.94,0.00017095,2]
[366441935,1750257056070,-602.08,0.00017095,2]
[366441936,1750257056080,-683.17,0.00017095,2]
[366441937,1750257056090,-750.67,0.00017095,2]
[366441938,1750257056100,-796.54,0.00017095,2]
[366441939,1750257056110,-1113.1,0.00017095,2]
[366441940,1750257056120,-490.0,0.00017095,2]
[366441941,1750257056131,-490.0,0.00017095,2]
[366441942,1750257056140,-1298.39,0.00017095,2]
[366441943,1750257056150,-490.0,0.00017095,2]
[366441944,1750257056160,-2524.38,0.00017095,2]
[366441945,1750257056170,-624.51,0.00017095,2]
[366441946,1750257056180,-843.28,0.00017095,2]
[366441947,1750257056189,-490.0,0.00017095,2]
[366441948,1750257056199,-998.1,0.00017095,2]
[366441949,1750257056209,-1474.63,0.00017095,2]
[366441950,1750257056218,-741.38,0.00017095,2]
[366441951,1750257056228,-490.0,0.00017095,2]
[366441952,1750257056238,-490.0,0.00017095,2]
[366441953,1750257056248,-490.0,0.00017095,2]
[366441954,1750257056262,-793.14,0.00017095,2]
[366441955,1750257056272,-614.44,0.00017095,2]
[366441956,1750257056281,-490.0,0.00017095,2]
[366441957,1750257056291,-646.95,0.00017095,2]
[366441958,1750257056300,-2116.32,0.00017095,2]
[366441959,1750257056310,-600.42,0.00017095,2]
[366441960,1750257056320,-562.77,0.00017095,2]
[366441961,1750257056329,-490.0,0.00017095,2]
[366441962,1750257056339,-1069.11,0.00017095,2]
[366441963,1750257056349,-513.47,0.00017095,2]
[366441964,1750257056358,-490.0,0.00017095,2]
[366441965,1750257056368,-567.01,0.00017095,2]
[366441966,1750257056377,-1198.12,0.00017095,2]
[366441967,1750257056387,-490.0,0.00017095,2]
[366441968,1750257056396,-632.91,0.00017095,2]
[366441969,1750257056406,-1129.76,0.00017095,2]
[366441970,1750257056419,-1414.45,0.00017095,2]
[366441971,1750257056429,-490.0,0.00017095,2]
[366441972,1750257056438,-547.59280001,0.00017095,2]
[366441973,1750257056448,-521.80069578,0.00017095,2]
[366441974,1750257056458,-490.0,0.00017095,2]
[366441975,1750257056467,-151.0,0.00017095,2]
[366441976,1750257056477,-10356.91110387,0.00017095,2]
[366441977,1750257056487,-196.89492744,0.00017107,2]
[366441978,1750257056496,-7000.0,0.0001715,2]
[366441979,1750257056510,-10626.14940764,0.0001716,2]
[366441980,1750257056520,-2705.5633448,0.0001716,2]
[366441981,1750257056530,-5000.0,0.00017174,3]
[366441982,1750257056539,-3236.82632647,0.00017203,2]
[366441983,1750257056549,-752.74641027,0.0001721,2]
[366441984,1750257056559,-858.36893487,0.00017222,2]
[366441985,1750257056569,-1000.0,0.00017226,2]
[366441986,1750257056578,-10626.1494076,0.00017233,2]
[366441987,1750257056588,-513.0,0.0001724,2]
[366441988,1750257056598,-1000.0,0.00017243,2]
[366441989,1750257056607,-666.36014192,0.00017243,2]
[366441990,1750257056616,-695.86066143,0.00017243,2]
[366441991,1750257056624,-1001.86426653,0.00017243,2]
[366441992,1750257056634,-1000.0,0.00017243,2]
[366441993,1750257056643,-1000.0,0.00017243,2]
[366441994,1750257056655,-443.42977211,0.00017243,2]
[366441995,1750257056664,-1000.0,0.00017243,2]
[366441996,1750257056673,-587.0,0.00017257,2]
[366441997,1750257056683,-321.28315356,0.00017259,2]
[366441998,1750257056693,-156.587,0.00017259,2]
[366441999,1750257056702,-490.0,0.0001726,2]
[366442000,1750257056712,-686.14,0.0001726,2]
[366442001,1750257056721,-551.49,0.0001726,2]
[366442002,1750257056731,-777.25,0.0001726,2]
[366442003,1750257056741,-490.0,0.0001726,2]
[366442004,1750257056752,-518.54,0.0001726,2]
[366442005,1750257056762,-560.09,0.0001726,2]
[366442006,1750257056771,-490.0,0.0001726,2]
[366442007,1750257056781,-285.76,0.0001726,2]
[366442008,1750257056790,-490.0,0.0001726,2]
[366442009,1750257056800,-490.0,0.0001726,2]
[366442010,1750257056810,-490.0,0.0001726,2]
[366442011,1750257056819,-490.0,0.0001726,2]
[366442012,1750257056829,-300.0,0.0001726,2]
[366442013,1750257056839,-490.0,0.0001726,2]
[366442014,1750257056850,-490.0,0.0001726,2]
[366442015,1750257056859,-490.0,0.0001726,2]
[366442016,1750257056869,-781.86,0.0001726,2]
[366442017,1750257056879,-492.72,0.0001726,2]
[366442018,1750257056888,-490.0,0.0001726,2]
[366442019,1750257056898,-519.56,0.0001726,2]
[366442020,1750257056908,-523.43,0.0001726,2]
[366442021,1750257056918,-490.0,0.0001726,2]
[366442022,1750257056928,-990.9,0.0001726,2]
[366442023,1750257056938,-490.0,0.0001726,2]
[366442024,1750257056948,-490.0,0.0001726,2]
[366442025,1750257056958,-490.0,0.0001726,2]
[366442026,1750257056967,-538.02,0.0001726,2]
[366442027,1750257056977,-763.15,0.0001726,2]
[366442028,1750257056987,-490.0,0.0001726,2]
[366442029,1750257056997,-1338.65,0.0001726,2]
[366442030,1750257057011,-613.29,0.0001726,2]
[366442031,1750257057021,-490.0,0.0001726,2]
[366442032,1750257057031,-743.18,0.0001726,2]
[366442033,1750257057042,-490.0,0.0001726,2]
[366442034,1750257057051,-490.0,0.0001726,2]
[366442035,1750257057061,-490.0,0.0001726,2]
[366442036,1750257057070,-490.0,0.0001726,2]
[366442037,1750257057080,-706.15,0.0001726,2]
[366442038,1750257057090,-490.0,0.0001726,2]
[366442039,1750257057100,-490.0,0.0001726,2]
[366442040,1750257057110,-551.76,0.0001726,2]
[366442041,1750257057120,-490.0,0.0001726,2]
[366442042,1750257057130,-490.0,0.0001726,2]
[366442043,1750257057140,-546.08,0.0001726,2]
[366442044,1750257057150,-490.0,0.0001726,2]
[366442045,1750257057160,-658.72,0.0001726,2]
[366442046,1750257057170,-490.0,0.0001726,2]
[366442047,1750257057181,-490.0,0.0001726,2]
[366442048,1750257057190,-490.0,0.0001726,2]
[366442049,1750257057201,-490.0,0.0001726,2]
[366442050,1750257057212,-533.74,0.0001726,2]
[366442051,1750257057221,-490.0,0.0001726,2]
[366442052,1750257057231,-490.0,0.0001726,2]
[366442053,1750257057241,-490.0,0.0001726,2]
[366442054,1750257057253,-490.0,0.0001726,2]
[366442055,1750257057262,-490.0,0.0001726,2]
[366442056,1750257057272,-210.60531559,0.0001726,2]
[366442057,1750257057281,-871.98,0.0001726,2]
[366442058,1750257057290,-490.0,0.0001726,2]
[366442059,1750257057300,-490.0,0.0001726,2]
[366442060,1750257057310,-490.0,0.0001726,2]
[366442061,1750257057319,-584.75,0.0001726,2]
[366442062,1750257057329,-589.43,0.0001726,2]
[366442063,1750257057339,-490.0,0.0001726,2]
[366442064,1750257057349,-908.44,0.0001726,2]
[366442065,1750257057359,-490.13,0.0001726,2]
[366442066,1750257057369,-490.0,0.0001726,2]
[366442067,1750257057379,-490.0,0.0001726,2]
[366442068,1750257057389,-251.19857419,0.0001726,2]
[366442069,1750257057400,-618.93619745,0.0001726,2]
[366442070,1750257057411,-490.0,0.0001726,2]
[366442071,1750257057422,-490.0,0.0001726,2]
[366442072,1750257057432,-490.0,0.0001726,2]
[366442073,1750257057441,-670.85,0.0001726,2]
[366442074,1750257057451,-490.0,0.0001726,2]
[366442075,1750257057462,-594.25,0.0001726,2]
[366442076,1750257057472,-490.0,0.0001726,2]
[366442077,1750257057481,-490.0,0.0001726,2]
[366442078,1750257057491,-674.18,0.0001726,2]
[366442079,1750257057503,-562.72,0.0001726,2]
[366442080,1750257057513,-581.59,0.0001726,2]
[366442081,1750257057523,-571.73,0.0001726,2]
[366442082,1750257057533,-490.0,0.0001726,2]
[366442083,1750257057543,-512.65,0.0001726,2]
[366442084,1750257057552,-578.22,0.0001726,2]
[366442085,1750257057562,-502.22,0.0001726,2]
[366442086,1750257057572,-535.71,0.0001726,2]
[366442087,1750257057582,-490.0,0.0001726,2]
[366442088,1750257057593,-528.62,0.0001726,2]
[366442089,1750257057608,-490.0,0.0001726,2]
[366442090,1750257057618,-490.0,0.0001726,2]
[366442091,1750257057627,-761.74,0.0001726,2]
[366442092,1750257057637,-549.14,0.0001726,2]
[366442093,1750257057647,-1157.46,0.0001726,2]
[366442094,1750257057657,-711.34,0.0001726,2]
[366442095,1750257057667,-278.91706027,0.0001726,2]
[366442096,1750257057676,-490.0,0.0001726,2]
[366442097,1750257057686,-1138.45,0.0001726,2]
[366442098,1750257057696,-574.18,0.0001726,2]
[366442099,1750257057705,-490.0,0.0001726,2]
[366442100,1750257057715,-490.0,0.0001726,2]
[366442101,1750257057724,-697.93,0.0001726,2]
[366442102,1750257057734,-1306.71,0.0001726,2]
[366442103,1750257057743,-490.0,0.0001726,2]
[366442104,1750257057754,-513.85,0.0001726,2]
[366442105,1750257057764,-490.0,0.0001726,2]
[366442106,1750257057773,-1490.15,0.0001726,2]
[366442107,1750257057783,-1470.31,0.0001726,2]
[366442108,1750257057793,-650.64,0.0001726,2]
[366442109,1750257057803,-714.69,0.0001726,2]
[366442110,1750257057813,-1055.17,0.0001726,2]
[366442111,1750257057824,-490.0,0.0001726,2]
[366442112,1750257057835,-938.74,0.0001726,2]
[366442113,1750257057844,-746.58,0.0001726,2]
[366442114,1750257057853,-752.12,0.0001726,2]
[366442115,1750257057863,-615.79,0.0001726,2]
[366442116,1750257057874,-1184.09,0.0001726,2]
[366442117,1750257057883,-207.2952984,0.0001726,2]
[366442118,1750257057893,-490.0,0.0001726,2]
[366442119,1750257057903,-595.15,0.0001726,2]
[366442120,1750257057913,-546.89,0.0001726,2]
[366442121,1750257057923,-892.68,0.0001726,2]
[366442122,1750257057933,-662.92,0.0001726,2]
[366442123,1750257057943,-490.0,0.0001726,2]
[366442124,1750257057953,-784.12,0.0001726,2]
[366442125,1750257057962,-1398.48,0.0001726,2]
[366442126,1750257057972,-1387.74,0.0001726,2]
[366442127,1750257057981,-1002.15,0.0001726,2]
[366442128,1750257057991,-562.5,0.0001726,2]
[366442129,1750257058002,-490.0,0.0001726,2]
[366442130,1750257058012,-1114.11,0.0001726,2]
[366442131,1750257058022,-437.43131587,0.0001726,2]
[366442132,1750257058031,-1158.83,0.0001726,2]
[366442133,1750257058041,-490.0,0.0001726,2]
[366442134,1750257058050,-1123.05,0.0001726,2]
[366442135,1750257058060,-490.0,0.0001726,2]
[366442136,1750257058071,-585.81,0.0001726,2]
[366442137,1750257058081,-512.44,0.0001726,2]
[366442138,1750257058091,-529.92,0.0001726,2]
[366442139,1750257058101,-619.01,0.0001726,2]
[366442140,1750257058111,-490.0,0.0001726,2]
[366442141,1750257058121,-511.25,0.0001726,2]
[366442142,1750257058132,-490.0,0.0001726,2]
[366442143,1750257058142,-490.0,0.0001726,2]
[366442144,1750257058152,-690.3,0.0001726,2]
[366442145,1750257058163,-1117.61,0.0001726,2]
[366442146,1750257058173,-1128.49,0.0001726,2]
[366442147,1750257058183,-490.0,0.0001726,2]
[366442148,1750257058193,-490.0,0.0001726,2]
[366442149,1750257058203,-490.0,0.0001726,2]
[366442150,1750257058212,-1499.37,0.0001726,2]
[366442151,1750257058222,-705.99,0.0001726,2]
[366442152,1750257058231,-1251.05,0.0001726,2]
[366442153,1750257058240,-770.06,0.0001726,2]
[366442154,1750257058250,-490.0,0.0001726,2]
[366442155,1750257058263,-1149.1,0.0001726,2]
[366442156,1750257058274,-607.32,0.0001726,2]
[366442157,1750257058284,-697.95,0.0001726,2]
[366442158,1750257058294,-490.0,0.0001726,2]
[366442159,1750257058304,-951.45,0.0001726,2]
[366442160,1750257058315,-1246.97,0.0001726,2]
[366442161,1750257058325,-490.0,0.0001726,2]
[366442162,1750257058335,-490.0,0.0001726,2]
[366442163,1750257058345,-704.38,0.0001726,2]
[366442164,1750257058356,-718.12,0.0001726,2]
[366442165,1750257058366,-783.15,0.0001726,2]
[366442166,1750257058375,-897.47,0.0001726,2]
[366442167,1750257058385,-490.0,0.0001726,2]
[366442168,1750257058395,-267.30359001,0.0001726,2]
[366442169,1750257058407,-655.08,0.0001726,2]
[366442170,1750257058417,-1547.99,0.0001726,2]
[366442171,1750257058427,-801.94,0.0001726,2]
[366442172,1750257058438,-961.74,0.0001726,2]
[366442173,1750257058447,-492.13,0.0001726,2]
[366442174,1750257058457,-490.0,0.0001726,2]
[366442175,1750257058466,-1810.08,0.0001726,2]
[366442176,1750257058477,-609.2,0.0001726,2]
[366442177,1750257058487,-602.08,0.0001726,2]
[366442178,1750257058497,-683.17,0.0001726,2]